bitfinex-derivatives/quotes_BTCF0:USTF0_20260127
["timestamp","ask_amount","ask_price","bid_price","bid_amount"]
[1769537637408,0.011421,87675.0,87666.0,0.01140687]
[1769537637608,0.00258838,87674.0,87666.0,0.01140687]
[1769537637806,0.00086282,87673.0,87666.0,0.01140687]
[1769537638011,0.01033841,87680.0,87666.0,0.01140687]
[1769537638310,0.10272,87686.0,87666.0,0.01140687]
[1769537638311,0.01033841,87678.0,87666.0,0.01140687]
[1769537638613,0.011421,87675.0,87666.0,0.01399525]
[1769537638815,0.01142,87678.0,87666.0,0.01399525]
[1769537639311,0.000116,87679.0,87666.0,0.01399525]
[1769537639511,0.000116,87679.0,87671.0,0.011421]
[1769537639715,0.10276,87682.0,87671.0,0.00258838]
[1769537640507,0.01037409,87680.0,87654.0,0.011423]
[1769537640711,0.01142,87681.0,87654.0,0.01401138]
[1769537640712,0.011421,87672.0,87654.0,0.01401138]
[1769537641016,0.011421,87670.0,87654.0,0.00258838]
[1769537641317,0.10248037,87672.0,87654.0,0.00258838]
[1769537641518,0.011421,87670.0,87654.0,0.00258838]
[1769537641719,0.011421,87671.0,87655.0,0.011423]
[1769537641913,0.011421,87671.0,87656.0,0.00258838]
[1769537642215,0.10248037,87672.0,87657.0,0.011423]
[1769537642419,0.10248037,87672.0,87658.0,0.00258838]
[1769537642713,0.01142,87679.0,87664.0,0.011422]
[1769537642919,0.10276,87678.0,87665.0,0.00258838]
[1769537643316,0.14798705,87700.0,87665.0,0.00258838]
[1769537643317,0.10276,87681.0,87668.0,0.011422]
[1769537643621,0.10276,87681.0,87669.0,0.00258838]
[1769537644117,0.06331587,87692.0,87669.0,0.00258838]
[1769537644118,0.10276,87688.0,87679.0,0.01142]
[1769537644309,0.10276,87688.0,87660.0,0.414903]
[1769537644310,0.01037129,87699.0,87685.0,0.011419]
[1769537644511,0.10276,87701.0,87686.0,0.01400738]
[1769537644723,0.10276,87700.0,87686.0,0.01400738]
[1769537645018,0.10276,87700.0,87686.0,0.00258838]
[1769537645520,0.01037129,87706.0,87691.0,0.011418]
[1769537645709,0.10276,87703.0,87692.0,0.00258838]
[1769537646113,0.10276,87708.0,87692.0,0.00258838]
[1769537646411,0.10276,87708.0,87693.0,0.011418]
[1769537646621,0.011417,87707.0,87694.0,0.00258838]
[1769537647509,0.011417,87704.0,87694.0,0.00258838]
[1769537647714,0.011417,87707.0,87694.0,0.00258838]
[1769537653018,0.30076,87715.0,87694.0,0.00258838]
[1769537653019,0.011416,87715.0,87694.0,0.00258838]
[1769537653220,0.01042856,87717.0,87694.0,0.00258838]
[1769537653414,0.114175,87716.0,87700.0,0.011417]
[1769537653613,0.12460356,87716.0,87701.0,0.00258838]
[1769537653814,0.01042856,87715.0,87701.0,0.00258838]
[1769537654322,0.29215729,87734.0,87701.0,0.00258838]
[1769537654323,0.01042856,87723.0,87701.0,0.00258838]
[1769537654512,0.10276,87718.0,87711.0,0.011416]
[1769537654712,0.10120613,87718.0,87712.0,0.00258838]
[1769537655336,0.0104178,87724.0,87712.0,0.00258838]
[1769537655523,0.16450386,87731.0,87712.0,0.00258838]
[1769537655826,0.011414,87730.0,87715.0,0.011415]
[1769537656025,0.00258838,87726.0,87716.0,0.00086282]
[1769537656322,0.011415,87723.0,87697.0,0.00916438]
[1769537656530,0.00258838,87722.0,87708.0,0.00086282]
[1769537657026,0.011415,87721.0,87708.0,0.00086282]
[1769537657223,0.00258838,87720.0,87708.0,0.00086282]
[1769537659431,0.00258838,87720.0,87709.0,0.011416]
[1769537659626,0.00258838,87720.0,87710.0,0.00086282]
[1769537663926,0.02068865,87718.0,87704.0,0.011417]
[1769537664126,0.00258838,87717.0,87705.0,0.00086282]
[1769537664328,0.00258838,87717.0,87706.0,0.011417]
[1769537664535,0.00258838,87717.0,87707.0,0.00086282]
[1769537664924,0.011415,87721.0,87708.0,0.011416]
[1769537665231,0.02308766,87721.0,87709.0,0.00086282]
[1769537665533,0.00908428,87718.0,87704.0,0.10276]
[1769537665733,0.01167266,87717.0,87705.0,0.011417]
[1769537666338,0.00908428,87716.0,87704.0,0.10276]
[1769537666633,0.00908428,87710.0,87695.0,0.10276]
[1769537666935,0.01167266,87709.0,87696.0,0.011418]
[1769537667332,0.00258838,87709.0,87696.0,0.011418]
[1769537668035,0.01400438,87709.0,87696.0,0.011418]
[1769537668224,0.011417,87706.0,87695.0,0.10276]
[1769537668425,0.00258838,87705.0,87695.0,0.10276]
[1769537669634,0.011417,87703.0,87695.0,0.10276]
[1769537669834,0.00258838,87702.0,87695.0,0.10276]
[1769537670535,0.011416,87710.0,87696.0,0.011418]
[1769537670838,0.011417,87706.0,87695.0,0.10276]
[1769537671039,0.00258838,87705.0,87695.0,0.10276]
[1769537672333,0.011417,87704.0,87695.0,0.10276]
[1769537672536,0.00258838,87703.0,87695.0,0.10276]
[1769537673434,0.00258838,87703.0,87695.0,0.114178]
[1769537673634,0.10276,87710.0,87697.0,0.011418]
[1769537673841,0.00258838,87709.0,87698.0,0.00926372]
[1769537674030,0.01400438,87709.0,87698.0,0.00926372]
[1769537675346,0.00258838,87709.0,87698.0,0.02068172]
[1769537675541,0.00908428,87715.0,87698.0,0.00926372]
[1769537675730,0.10276,87719.0,87706.0,0.02068072]
[1769537675931,0.10276,87719.0,87706.0,0.00926372]
[1769537675932,0.00258838,87718.0,87706.0,0.00926372]
[1769537676139,0.00258838,87718.0,87696.0,0.00926372]
[1769537676340,0.01167266,87718.0,87706.0,0.011417]
[1769537677035,0.01167266,87718.0,87701.0,0.02068072]
[1769537677235,0.01167266,87718.0,87702.0,0.011417]
[1769537677940,0.011415,87717.0,87702.0,0.011417]
[1769537678143,0.00258838,87716.0,87702.0,0.011417]
[1769537678542,0.00258838,87716.0,87704.0,0.011417]
[1769537678743,0.10276,87719.0,87706.0,0.011417]
[1769537679141,0.10276,87719.0,87706.0,0.02068072]
[1769537679545,0.10534838,87719.0,87706.0,0.02068072]
[1769537680239,0.10276,87719.0,87707.0,0.011416]
[1769537680439,0.10276,87719.0,87706.0,0.00926372]
[1769537680642,0.10276,87719.0,87712.0,0.011416]
[1769537681541,0.10276,87719.0,87714.0,0.011416]
[1769537681842,0.10276,87719.0,87706.0,0.00926372]
[1769537683038,0.10276,87719.0,87708.0,0.00926372]
[1769537683240,0.10276,87719.0,87712.0,0.011416]
[1769537683547,0.011,87727.0,87708.0,0.00926372]
[1769537683748,0.00908428,87726.0,87707.0,0.00926372]
[1769537684052,0.11376,87727.0,87721.0,0.011415]
[1769537684240,0.11634838,87727.0,87716.0,0.011415]
[1769537684445,0.11634838,87727.0,87712.0,0.00926372]
[1769537685389,0.11634838,87727.0,87719.0,0.011415]
[1769537685548,0.011,87727.0,87719.0,0.011415]
[1769537685745,0.28074429,87749.0,87722.0,0.011415]
[1769537685746,0.011413,87736.0,87722.0,0.011415]
[1769537686049,0.01400138,87736.0,87722.0,0.011415]
[1769537687945,0.00258838,87736.0,87721.0,0.00926372]
[1769537688151,0.00258838,87736.0,87722.0,0.00926372]
[1769537688551,0.011413,87735.0,87722.0,0.00926372]
[1769537688855,0.01400138,87735.0,87723.0,0.011414]
[1769537689144,0.01400138,87735.0,87713.0,0.10276]
[1769537689145,0.00908428,87728.0,87713.0,0.10276]
[1769537689345,0.01167266,87727.0,87718.0,0.011415]
[1769537689548,0.01167266,87727.0,87719.0,0.011415]
[1769537689746,0.00258838,87727.0,87719.0,0.011415]
[1769537689942,0.00908428,87733.0,87714.0,0.02067972]
[1769537690143,0.00258838,87733.0,87724.0,0.011414]
[1769537690753,0.00258838,87733.0,87721.0,0.011415]
[1769537691141,0.00258838,87733.0,87720.0,0.00926372]
[1769537691943,0.00258838,87733.0,87725.0,0.011414]
[1769537692237,0.011412,87743.0,87730.0,0.011413]
[1769537692440,0.011412,87743.0,87730.0,0.0052614]
[1769537692441,0.01400038,87743.0,87730.0,0.0052614]
[1769537692641,0.00258838,87743.0,87725.0,0.00926372]
[1769537692844,0.00258838,87743.0,87727.0,0.00926372]
[1769537693254,0.00258838,87743.0,87734.0,0.011413]
[1769537693852,0.00258838,87743.0,87727.0,0.00926372]
[1769537694056,0.00258838,87743.0,87730.0,0.011413]
[1769537695055,0.01400038,87743.0,87731.0,0.011413]
[1769537696757,0.00258838,87743.0,87731.0,0.011413]
[1769537697554,0.00258838,87743.0,87730.0,0.011413]
[1769537697855,0.00258838,87743.0,87732.0,0.011413]
[1769537698846,0.01400038,87743.0,87732.0,0.011413]
[1769537699258,0.00258838,87743.0,87732.0,0.011413]
[1769537700370,0.00258838,87743.0,87733.0,0.011413]
[1769537700960,0.011412,87742.0,87730.0,0.011413]
[1769537701155,0.00258838,87741.0,87731.0,0.011413]
[1769537702157,0.00258838,87741.0,87732.0,0.011413]
[1769537702356,0.01400038,87741.0,87728.0,0.011414]
[1769537702557,0.00258838,87741.0,87729.0,0.011414]
[1769537702763,0.00258838,87741.0,87731.0,0.011413]
[1769537703050,0.00258838,87741.0,87727.0,0.00926372]
[1769537703051,0.00912802,87740.0,87733.0,0.011413]
[1769537703256,0.00258838,87740.0,87733.0,0.011413]
[1769537703455,0.011,87747.0,87727.0,0.00926372]
[1769537703653,0.00797698,87753.0,87744.0,0.00985574]
[1769537703853,0.00258838,87752.0,87742.0,0.011412]
[1769537704043,0.0189767,87753.0,87739.0,0.00985574]
[1769537704249,9.8e-07,87754.0,87751.0,0.011411]
[1769537704558,0.022409,87767.0,87742.0,0.011412]
[1769537704559,0.011,87767.0,87753.0,0.00985574]
[1769537704753,0.01358838,87767.0,87756.0,0.01141]
[1769537704958,0.01358838,87767.0,87756.0,0.00985574]
[1769537705156,0.01358838,87767.0,87753.0,0.01141]
[1769537705554,0.01358838,87767.0,87751.0,0.00985574]
[1769537705755,0.01358838,87767.0,87753.0,0.00985574]
[1769537706259,0.011408,87776.0,87766.0,0.00985574]
[1769537706459,0.00086282,87775.0,87760.0,0.10272]
[1769537706653,0.00086282,87775.0,87760.0,0.11516412]
[1769537706858,0.011409,87765.0,87748.0,0.02126674]
[1769537707058,8.2e-07,87764.0,87760.0,0.01141]
[1769537707253,0.00912802,87768.0,87760.0,0.00258838]
[1769537707450,0.00912802,87775.0,87760.0,0.00258838]
[1769537708153,0.07249387,87788.0,87767.0,0.00985574]
[1769537708363,0.07249387,87788.0,87773.0,0.011408]
[1769537708364,0.00912802,87788.0,87773.0,0.011408]
[1769537708548,0.00914358,87785.0,87774.0,0.00258838]
[1769537708744,0.00914358,87785.0,87764.0,0.00256923]
[1769537708745,0.011407,87777.0,87764.0,0.00256923]
[1769537708946,0.00914358,87780.0,87766.0,0.011409]
[1769537709157,0.00914358,87780.0,87768.0,0.011409]
[1769537709353,0.011406,87785.0,87768.0,0.00258838]
[1769537709552,0.011406,87785.0,87768.0,0.00534296]
[1769537709959,0.00912802,87786.0,87769.0,0.01416258]
[1769537710156,0.00912802,87786.0,87771.0,0.011408]
[1769537710365,0.00797335,87793.0,87781.0,0.00275458]
[1769537710549,0.00912802,87802.0,87783.0,0.00275458]
[1769537710747,0.011404,87800.0,87784.0,0.00258838]
[1769537711350,0.10272,87803.0,87787.0,0.00271862]
[1769537711552,0.10272,87803.0,87789.0,0.011406]
[1769537711766,0.10272,87803.0,87790.0,0.00258838]
[1769537712150,0.114124,87803.0,87790.0,0.00258838]
[1769537712349,0.10272,87803.0,87790.0,0.00258838]
[1769537712554,0.02012802,87807.0,87790.0,0.00258838]
[1769537712750,0.011,87807.0,87797.0,0.011405]
[1769537713060,0.011,87807.0,87798.0,0.00258838]
[1769537713259,0.02053202,87803.0,87785.0,0.011406]
[1769537713464,0.00912802,87802.0,87787.0,0.011406]
[1769537713762,0.011,87807.0,87798.0,0.011405]
[1769537713961,0.00912802,87818.0,87801.0,0.00292403]
[1769537714158,0.00912802,87809.0,87797.0,0.10268]
[1769537714465,0.00912802,87809.0,87797.0,0.10526838]
[1769537714858,0.00912802,87801.0,87781.0,0.00292403]
[1769537715060,0.00912802,87799.0,87785.0,0.011406]
[1769537715375,0.011404,87803.0,87786.0,0.00258838]
[1769537715756,0.00912802,87805.0,87786.0,0.00555312]
[1769537715956,0.00912802,87805.0,87787.0,0.00296474]
[1769537716157,0.10268,87810.0,87789.0,0.00296474]
[1769537716355,0.10268,87810.0,87790.0,0.01695912]
[1769537716558,0.10268,87810.0,87794.0,0.011405]
[1769537716762,0.10268,87810.0,87795.0,0.00258838]
[1769537716959,0.00912802,87811.0,87795.0,0.01399338]
[1769537717157,0.011402,87816.0,87798.0,0.00292448]
[1769537717358,0.011402,87816.0,87799.0,0.00258838]
[1769537717560,0.011,87827.0,87801.0,0.00292448]
[1769537717561,0.00912802,87826.0,87801.0,0.00292448]
[1769537717761,0.00912802,87826.0,87793.0,0.10268]
[1769537717762,0.00912802,87826.0,87803.0,0.00292448]
[1769537717966,0.00912802,87826.0,87804.0,0.10526838]
[1769537718167,0.00912802,87826.0,87814.0,0.011403]
[1769537718464,0.011,87827.0,87815.0,0.00258838]
[1769537718966,0.00796971,87833.0,87816.0,0.00292448]
[1769537719270,0.00796971,87833.0,87818.0,0.00291293]
[1769537719569,0.00796971,87833.0,87820.0,0.011402]
[1769537719863,0.00796971,87833.0,87821.0,0.01690331]
[1769537720063,0.00796971,87833.0,87823.0,0.011401]
[1769537720386,0.00796971,87833.0,87824.0,0.00258838]
[1769537720971,0.011399,87844.0,87825.0,0.00291293]
[1769537721270,0.00912802,87845.0,87829.0,0.011401]
[1769537721457,0.00912802,87845.0,87830.0,0.00258838]
[1769537721961,0.04509492,87843.0,87830.0,0.00258838]
[1769537722673,0.0359669,87843.0,87831.0,0.0114]
[1769537722873,0.04547385,87843.0,87832.0,0.00258838]
[1769537723169,0.04547385,87843.0,87826.0,0.10264]
[1769537723367,0.04547385,87843.0,87829.0,0.011401]
[1769537723568,0.0359669,87843.0,87831.0,0.0114]
[1769537723778,0.0359669,87843.0,87826.0,0.10264]
[1769537723779,0.011397,87857.0,87833.0,0.00281923]
[1769537723970,0.10264,87860.0,87841.0,0.00281923]
[1769537724168,0.02050695,87867.0,87846.0,0.00281923]
[1769537724470,0.011,87867.0,87850.0,0.00281923]
[1769537724671,0.011,87867.0,87851.0,0.00540761]
[1769537724873,0.011397,87860.0,87851.0,0.00258838]
[1769537725062,0.00953794,87866.0,87844.0,0.00281923]
[1769537725271,0.011397,87858.0,87845.0,0.10264]
[1769537725460,0.011397,87856.0,87846.0,0.10264]
[1769537725658,0.02093594,87851.0,87832.0,0.0114]
[1769537725875,0.00953794,87847.0,87834.0,0.0114]
[1769537726082,0.00953794,87847.0,87836.0,0.0114]
[1769537726370,0.00953794,87858.0,87837.0,0.00258838]
[1769537726561,0.011397,87854.0,87837.0,0.00258838]
[1769537726762,0.00953794,87858.0,87837.0,0.00258838]
[1769537726964,0.011397,87854.0,87837.0,0.00258838]
[1769537727167,0.00953794,87855.0,87837.0,0.00258838]
[1769537727366,0.02093594,87853.0,87837.0,0.00258838]
[1769537727563,0.00953794,87850.0,87833.0,0.11404]
[1769537727875,0.00953794,87850.0,87834.0,0.00258838]
[1769537728065,0.00953794,87850.0,87837.0,0.0114]
[1769537728260,0.00953794,87857.0,87838.0,0.00545495]
[1769537728474,0.10264,87859.0,87839.0,0.00286657]
[1769537728666,0.10264,87859.0,87841.0,0.00286657]
[1769537728860,0.00953794,87849.0,87826.0,0.00286657]
[1769537729061,0.00953794,87849.0,87830.0,0.00258838]
[1769537729474,0.00953794,87849.0,87836.0,0.0114]
[1769537729677,0.00953794,87849.0,87837.0,0.00258838]
[1769537730671,0.00953794,87856.0,87841.0,0.011399]
[1769537730865,0.00953794,87856.0,87842.0,0.00258838]
[1769537731175,0.02140799,87889.0,87850.0,0.011398]
[1769537731176,0.022396,87867.0,87850.0,0.011398]
[1769537731379,0.022396,87867.0,87851.0,0.00258838]
[1769537731673,0.011,87867.0,87852.0,0.011398]
[1769537731863,0.011,87867.0,87853.0,0.00258838]
[1769537732063,0.00953794,87866.0,87853.0,0.00258838]
[1769537732266,0.11213794,87879.0,87854.0,0.00265634]
[1769537732466,8e-08,87873.0,87869.0,0.011395]
[1769537732759,8e-08,87873.0,87872.0,0.00258838]
[1769537732964,0.011393,87889.0,87872.0,0.00258838]
[1769537733165,0.11213794,87891.0,87872.0,0.00258838]
[1769537733166,0.011393,87890.0,87872.0,0.00258838]
[1769537733364,0.1026,87901.0,87872.0,0.00258838]
[1769537733365,0.03193094,87887.0,87872.0,0.00258838]
[1769537733773,0.03193094,87887.0,87862.0,0.011396]
[1769537733774,0.00953794,87874.0,87862.0,0.011396]
[1769537733980,0.00953794,87873.0,87846.0,0.00381169]
[1769537734174,0.00953794,87873.0,87842.0,0.09033052]
[1769537734175,0.00953794,87871.0,87848.0,0.00381169]
[1769537734368,0.00258838,87871.0,87860.0,0.011397]
[1769537734574,0.1026,87877.0,87862.0,0.011396]
[1769537734882,0.00953794,87880.0,87855.0,0.00381169]
[1769537735074,0.00258838,87879.0,87865.0,0.011396]
[1769537735273,0.011394,87878.0,87862.0,0.011396]
[1769537735466,0.1026,87881.0,87861.0,0.011396]
[1769537735467,0.011395,87876.0,87861.0,0.011396]
[1769537735668,0.00258838,87875.0,87859.0,0.0037492]
[1769537735867,0.00258838,87875.0,87860.0,0.1026]
[1769537735868,0.01398338,87875.0,87860.0,0.1026]
[1769537736074,0.011395,87872.0,87860.0,0.1026]
[1769537736266,0.011395,87870.0,87860.0,0.1026]
[1769537736468,0.00953794,87868.0,87852.0,0.1026]
[1769537736669,0.00258838,87867.0,87852.0,0.10094158]
[1769537736869,0.00953794,87866.0,87852.0,0.10094158]
[1769537737176,0.1026,87869.0,87830.0,0.09033052]
[1769537737177,0.00953794,87856.0,87838.0,0.1026]
[1769537737369,0.00258838,87855.0,87838.0,0.1026]
[1769537737572,0.00258838,87855.0,87838.0,0.09690735]
[1769537737969,0.01398538,87855.0,87838.0,0.10830635]
[1769537738170,0.01398538,87855.0,87840.0,0.00912194]
[1769537738473,0.00258838,87855.0,87842.0,0.011399]
[1769537739273,0.01398538,87855.0,87840.0,0.011399]
[1769537739467,0.00258838,87855.0,87846.0,0.011398]
[1769537739679,0.011397,87861.0,87846.0,0.011398]
[1769537739879,0.00258838,87860.0,87846.0,0.011398]
[1769537740081,0.011397,87859.0,87843.0,0.011399]
[1769537740281,0.00258838,87858.0,87843.0,0.011399]
[1769537740577,0.011396,87865.0,87849.0,0.00381928]
[1769537740769,0.00258838,87864.0,87849.0,0.00381928]
[1769537741080,0.011397,87861.0,87839.0,0.00367898]
[1769537741272,0.00258838,87860.0,87839.0,0.00367898]
[1769537741471,0.00258838,87860.0,87846.0,0.011398]
[1769537742378,0.00258838,87860.0,87848.0,0.011398]
[1769537742583,0.00253838,87860.0,87850.0,0.011398]
[1769537743281,0.00953794,87859.0,87848.0,0.011398]
[1769537743478,0.00258838,87858.0,87845.0,0.011398]
[1769537744087,0.00258838,87858.0,87847.0,0.011398]
[1769537744785,0.00258838,87858.0,87844.0,0.011399]
[1769537745394,0.00258838,87858.0,87846.0,0.011398]
[1769537746087,0.00953794,87857.0,87832.0,0.09033052]
[1769537746387,0.011399,87839.0,87829.0,0.10256]
[1769537746573,0.00258838,87838.0,87825.0,0.10256]
[1769537746776,0.00258838,87838.0,87819.0,0.011402]
[1769537746777,0.00953794,87835.0,87818.0,0.10256]
[1769537746976,0.00258838,87834.0,87819.0,0.00343452]
[1769537747294,0.10256,87839.0,87825.0,0.011401]
[1769537747477,0.00258838,87838.0,87822.0,0.011401]
[1769537747877,0.00258838,87838.0,87824.0,0.011401]
[1769537748279,0.01398838,87838.0,87821.0,0.011402]
[1769537748480,0.00953794,87833.0,87818.0,0.10256]
[1769537748692,0.00953794,87830.0,87818.0,0.10256]
[1769537748883,0.00258838,87829.0,87818.0,0.10256]
[1769537749788,0.00258838,87829.0,87814.0,0.01148698]
[1769537750176,0.01212632,87829.0,87816.0,0.011402]
[1769537750573,0.01212632,87829.0,87818.0,0.011402]
[1769537750784,0.01212632,87829.0,87815.0,0.011402]
[1769537751083,0.00953794,87828.0,87815.0,0.011402]
[1769537751288,0.00258838,87827.0,87815.0,0.011402]
[1769537751879,0.00258838,87827.0,87817.0,0.011402]
[1769537752892,0.00258838,87827.0,87819.0,0.011402]
[1769537753085,0.00953794,87841.0,87824.0,0.011401]
[1769537753288,0.40284,87840.0,87820.0,0.0037725]
[1769537753586,0.00953794,87838.0,87814.0,0.01148698]
[1769537753791,0.40284,87840.0,87814.0,0.01148698]
[1769537753792,0.011401,87830.0,87814.0,0.01148698]
[1769537754088,0.00258838,87829.0,87814.0,8.398e-05]
[1769537754292,0.00258838,87829.0,87820.0,0.011402]
[1769537754490,0.0114,87837.0,87814.0,8.398e-05]
[1769537754491,0.02118089,87837.0,87822.0,0.011401]
[1769537754796,0.11658838,87836.0,87822.0,0.011401]
[1769537754994,0.11658838,87836.0,87819.0,0.011402]
[1769537756381,0.11658838,87836.0,87821.0,0.011402]
[1769537756778,0.011399,87840.0,87825.0,0.011401]
[1769537756979,0.0114,87838.0,87822.0,0.00380291]
[1769537757181,0.10518838,87839.0,87826.0,0.011401]
[1769537757182,0.00258838,87837.0,87826.0,0.011401]
[1769537757479,0.00978089,87844.0,87822.0,0.00380291]
[1769537757684,0.00258838,87844.0,87827.0,0.00376684]
[1769537758090,0.1026,87846.0,87832.0,0.0114]
[1769537758294,0.00258838,87845.0,87832.0,0.0114]
[1769537758484,0.011399,87844.0,87827.0,0.00376684]
[1769537758683,0.00258838,87843.0,87828.0,0.011401]
[1769537758894,0.00978089,87831.0,87818.0,0.011402]
[1769537759190,0.00258838,87830.0,87816.0,0.1026]
[1769537759587,0.011401,87829.0,87816.0,0.1026]
[1769537759783,0.00978089,87832.0,87816.0,0.1026]
[1769537760089,0.01236927,87832.0,87816.0,0.1026]
[1769537760297,0.01236927,87832.0,87819.0,0.011402]
[1769537760800,0.02376927,87832.0,87819.0,0.011402]
[1769537761189,0.011401,87830.0,87817.0,0.011402]
[1769537761397,0.00258838,87829.0,87819.0,0.011402]
[1769537761691,0.02118289,87820.0,87814.0,8.398e-05]
[1769537761891,0.011402,87818.0,87806.0,0.01138868]
[1769537762097,0.00258838,87817.0,87807.0,0.011403]
[1769537762902,8.428e-05,87816.0,87807.0,0.011403]
[1769537763099,0.00267266,87816.0,87807.0,0.011403]
[1769537763292,0.00267266,87816.0,87806.0,0.01138868]
[1769537763602,0.01407466,87816.0,87800.0,0.011404]
[1769537763896,0.00978089,87814.0,87800.0,0.011404]
[1769537764092,0.01407466,87816.0,87793.0,0.09709056]
[1769537764093,8.428e-05,87816.0,87801.0,0.08911721]
[1769537764294,0.00267266,87816.0,87797.0,0.00906616]
[1769537764599,8.428e-05,87816.0,87806.0,0.011404]
[1769537764804,0.00267266,87816.0,87806.0,0.011404]
[1769537764994,0.011401,87826.0,87808.0,0.011403]
[1769537765303,0.00258838,87821.0,87805.0,0.00906616]
[1769537765510,0.00258838,87821.0,87808.0,0.011403]
[1769537767296,0.1026,87826.0,87810.0,0.00906616]
[1769537767500,0.00258838,87825.0,87815.0,0.011402]
[1769537768007,0.00258838,87825.0,87813.0,0.011403]
[1769537769308,0.00978089,87844.0,87815.0,0.00906616]
[1769537769511,0.00978089,87844.0,87810.0,0.114003]
[1769537769512,0.1026,87836.0,87820.0,0.00906616]
[1769537769905,0.1026,87836.0,87826.0,0.011401]
[1769537770100,0.07321362,87844.0,87828.0,0.011401]
[1769537770307,0.1026,87843.0,87830.0,0.0114]
[1769537770511,0.011399,87840.0,87827.0,0.00906616]
[1769537770811,0.00258838,87839.0,87826.0,0.011401]
[1769537771213,0.00978089,87838.0,87821.0,0.1026]
[1769537771414,0.00978089,87836.0,87823.0,0.08911721]
[1769537771604,0.0114,87832.0,87823.0,0.08911721]
[1769537771803,0.0114,87832.0,87806.0,0.011403]
[1769537771804,0.00978089,87830.0,87815.0,0.011402]
[1769537772004,0.00258838,87829.0,87815.0,0.011402]
[1769537772710,0.00258838,87829.0,87816.0,0.0108988]
[1769537772711,0.011401,87825.0,87816.0,0.0108988]
[1769537772907,0.00258838,87824.0,87812.0,0.0223018]
[1769537773415,0.00978089,87830.0,87816.0,0.011402]
[1769537773616,0.00258838,87830.0,87818.0,0.00906616]
[1769537774603,0.00258838,87830.0,87818.0,0.02046816]
[1769537774799,0.114,87833.0,87819.0,0.0108988]
[1769537775015,0.10518838,87833.0,87821.0,0.00906616]
[1769537775402,0.0114,87832.0,87821.0,0.00906616]
[1769537775605,0.01398838,87832.0,87821.0,0.00906616]
[1769537775813,0.01398838,87832.0,87819.0,0.0108988]
[1769537776013,0.00978089,87831.0,87811.0,0.1026]
[1769537776212,0.00978089,87828.0,87815.0,0.0108988]
[1769537776402,0.00258838,87827.0,87812.0,0.0108988]
[1769537777002,0.011402,87823.0,87812.0,0.0108988]
[1769537777214,0.011401,87829.0,87813.0,0.011403]
[1769537777406,0.00258838,87828.0,87813.0,0.011403]
[1769537777713,0.011401,87827.0,87812.0,0.0108988]
[1769537777909,0.00258838,87826.0,87812.0,0.0108988]
[1769537778308,0.01398938,87826.0,87812.0,0.0108988]
[1769537778508,0.00258838,87826.0,87813.0,0.011403]
[1769537778710,0.011401,87825.0,87812.0,0.0108988]
[1769537778904,0.011401,87823.0,87812.0,0.0108988]
[1769537779210,0.00258838,87822.0,87812.0,0.0108988]
[1769537779711,0.011401,87825.0,87812.0,0.0108988]
[1769537779918,0.00258838,87822.0,87812.0,0.0108988]
[1769537781913,0.00258838,87822.0,87814.0,0.011403]
[1769537782114,0.011401,87830.0,87812.0,0.01996496]
[1769537782311,0.00978089,87832.0,87815.0,0.00906616]
[1769537782513,0.114,87833.0,87815.0,0.00906616]
[1769537782514,0.011401,87827.0,87815.0,0.00906616]
[1769537782709,0.011401,87827.0,87816.0,0.0108988]
[1769537782710,0.01398938,87827.0,87816.0,0.0108988]
[1769537782905,0.00903269,87824.0,87817.0,0.0108988]
[1769537783109,0.00258838,87823.0,87813.0,0.0108988]
[1769537783310,0.00258838,87823.0,87813.0,0.0223018]
[1769537783720,0.01398938,87823.0,87813.0,0.0108988]
[1769537784518,0.00258838,87823.0,87813.0,0.0108988]
[1769537785011,0.01398938,87823.0,87813.0,0.0108988]
[1769537785919,0.00258838,87823.0,87813.0,0.0108988]
[1769537786214,0.011402,87822.0,87813.0,0.0108988]
[1769537786518,0.01399038,87822.0,87813.0,0.0108988]
[1769537786721,0.00258838,87822.0,87813.0,0.0108988]
[1769537788017,0.00258838,87822.0,87811.0,0.1026]
[1769537788321,0.011401,87827.0,87811.0,0.1026]
[1769537788525,0.00258838,87827.0,87813.0,0.00961494]
[1769537788725,0.00959741,87826.0,87811.0,0.1026]
[1769537789024,0.011402,87823.0,87811.0,0.1026]
[1769537789325,0.01399038,87823.0,87811.0,0.1026]
[1769537789616,0.011402,87822.0,87811.0,0.1026]
[1769537789820,0.011402,87819.0,87811.0,0.1026]
[1769537790027,0.00258838,87819.0,87809.0,0.011403]
[1769537790525,0.00258838,87819.0,87807.0,0.00961494]
[1769537790724,0.00258838,87819.0,87808.0,0.011403]
[1769537791025,0.00258838,87819.0,87807.0,0.00961494]
[1769537791917,0.00258838,87819.0,87809.0,0.011403]
[1769537792315,0.00258838,87819.0,87810.0,0.011403]
[1769537792515,0.011401,87828.0,87815.0,0.00961494]
[1769537792718,0.0114,87831.0,87816.0,0.011402]
[1769537792915,0.011401,87829.0,87816.0,0.011402]
[1769537793116,0.00258838,87831.0,87818.0,0.011402]
[1769537794116,0.01398838,87831.0,87818.0,0.011402]
[1769537794316,0.1026,87830.0,87818.0,0.02101694]
[1769537794519,0.011401,87829.0,87818.0,0.00961494]
[1769537794726,0.00258838,87828.0,87818.0,0.00961494]
[1769537795428,0.011401,87826.0,87813.0,0.011403]
[1769537795624,0.00258838,87825.0,87813.0,0.011403]
[1769537795927,0.00258838,87825.0,87806.0,0.00961494]
[1769537796526,0.00258838,87825.0,87812.0,0.011403]
[1769537797427,0.00258838,87825.0,87817.0,0.00961494]
[1769537797622,0.1026,87829.0,87813.0,0.00961494]
[1769537797828,0.10518838,87829.0,87813.0,0.00961494]
[1769537798128,0.011401,87824.0,87813.0,0.00961494]
[1769537798328,0.00258838,87824.0,87808.0,0.00961494]
[1769537798520,0.011402,87821.0,87809.0,0.00961494]
[1769537799219,0.011402,87819.0,87809.0,0.00961494]
[1769537799429,0.00959741,87817.0,87798.0,0.011405]
[1769537799630,0.011403,87814.0,87800.0,0.011404]
[1769537799928,0.00258838,87813.0,87800.0,0.011404]
[1769537800122,0.00959741,87816.0,87799.0,0.00961494]
[1769537800326,0.1026,87819.0,87806.0,0.00961494]
[1769537800529,0.11163462,87818.0,87806.0,0.00961494]
[1769537800830,0.1026,87819.0,87799.0,0.011404]
[1769537800831,0.11163462,87817.0,87809.0,0.02101794]
[1769537801135,0.1026,87819.0,87809.0,0.00961494]
[1769537801332,0.11161579,87818.0,87810.0,0.011403]
[1769537801532,0.11161579,87817.0,87809.0,0.00961494]